Cogmind - Beta 17 @@@ ROGUE MODE // 2026.07.25 @ 19:17:01 Player: Cinder Result: Destroyed by G-67 Veteran with Plasma Rifle Performance ------------- Evolutions (7) 3500 Regions Visited (20) 4000 Robots Destroyed (225) 1125 Value Destroyed (7601) 7601 Prototype IDs (57) 1140 Alien Tech Used (3) 600 Bonus (3687) 3687 TOTAL SCORE: 21653 Bonus ------- Triggered Max Security 1000 High Alert Combat Kills 1087 Aligned with FarCom 300 Met Data Miner 300 Met Warlord at Base 500 MAIN.C Attacked Warlord 500 Cogmind --------- Core Integrity 0/1300 Matter 54/300 Energy 99/100 System Corruption 3% Temperature Cool (0) Movement Core (50) Location -3/Quarantine Parts ------- > --- POWER (2) -------- (None) > --- PROPULSION (5) --- (None) > --- UTILITY (11) ----- (None) > --- WEAPON (3) ------- (None) > --- INVENTORY (5) ---- Huge Storage Unit Thermic Laser Vortex Rifle (34) Sigix Corpse Sigix Corpse Peak State ------------ > --- POWER ------------ Vortex Chain Reactor > --- PROPULSION ------- Improved Heavy Siege Treads Wheel Wheel > --- UTILITY ---------- Improved Cryofiber Web Advanced Heat Sink Advanced Coolant Injector Huge Storage Unit Advanced Signal Interpreter Improved Targeting Computer Improved Cloaking Device Graphene Brace Experimental Focal Shield Advanced Force Field Advanced Hacking Suite > --- WEAPON ----------- Advanced Plasma Cannon Advanced Micro-nuke Launcher > --- INVENTORY -------- Hybrid Fission Core Advanced Medium Treads Wheel Wheel Wheel Wheel Improved Cryofiber Web Advanced Heat Sink Huge Storage Unit High-capacity Battery Experimental Matter Compressor Seismic Detector Thermic Laser Wave Gun Vortex Rifle Vortex Rifle Disruptor Cannon Compact HERF Cannon Tiamat Missile Launcher [Rating: 123] Favorites ----------- Power Heavy Ion Engine Engine Heavy Ion Engine Power Core Micro Fission Core Reactor Reinforced Antimatter Reactor Propulsion Wheel Treads Advanced Medium Treads Leg Experimental Myomer Leg Wheel Wheel Hover Unit Cooled Antigrav System Utility Improved Light Armor Plating Device Advanced Heat Sink Storage Huge Storage Unit Processor Advanced Signal Interpreter Hackware Advanced Hacking Suite Protection Improved Light Armor Plating Weapon Heavy Phase Cannon Energy Gun Thermic Laser Energy Cannon Heavy Phase Cannon Ballistic Gun Light Assault Rifle Ballistic Cannon Heavy Flak Cannon Launcher Grenade Launcher Impact Weapon Core Stripper Slashing Weapon Segregator Build | -11 -10 -10 -10 -9 -8 -8 -8 -6 -6 -6 -6 -5 -5 -5 -5 -5 -4 -4 -3 -3 ------- Run | Yrd Mat Min Exi Min Mat Sto Rec Fac Low Low Dat Pro Fac Upp Upp War Pro Fac Res Qua Slots Evolved 14 | . . . . . 4 . . 4 . . . . 2 . . . . 2 2 . Power 1 | . . . . . . . . . . . . . 1 . . . . . . . Propulsion 3 | . . . . . 2 . . . . . . . . . . . . 1 . . Utility 9 | . . . . . 2 . . 3 . . . . 1 . . . . 1 2 . Weapon 1 | . . . . . . . . 1 . . . . . . . . . . . . Parts Attached 178 | 8 5 5 2 . 2 13 3 29 4 2 . 4 31 . 4 10 7 29 14 6 Power 21 | 1 . 2 . . . 2 . 2 1 1 . . 2 . . 2 . 6 1 1 Engine 8 | 1 . 2 . . . 2 . 1 1 . . . 1 . . . . . . . Core 6 | . . . . . . . . 1 . 1 . . 1 . . 1 . 2 . . Reactor 7 | . . . . . . . . . . . . . . . . 1 . 4 1 1 Propulsion 55 | 3 1 2 . . 1 5 1 8 1 1 . 1 6 . 3 4 1 12 5 . Treads 4 | . . . . . . . . . . . . . . . . . . 2 2 . Leg 3 | . . . . . . . . . . . . . . . . 1 . 2 . . Wheel 47 | 3 1 2 . . 1 5 1 8 1 1 . 1 6 . 3 2 1 8 3 . Hover 1 | . . . . . . . . . . . . . . . . 1 . . . . Flight . | . . . . . . . . . . . . . . . . . . . . . Utility 67 | 2 2 1 2 . 1 4 2 9 2 . . 2 15 . . 4 4 9 7 1 Device 27 | 1 . . . . . 2 . 2 1 . . . 8 . . 2 2 5 4 . Storage 11 | 1 1 1 2 . . . 1 1 . . . . . . . . . 1 2 1 Processor 6 | . . . . . . . . 2 . . . . 1 . . 1 1 . 1 . Hackware 3 | . . . . . . . . . . . . . 2 . . . . 1 . . Protection 20 | . 1 . . . 1 2 1 4 1 . . 2 4 . . 1 1 2 . . Artifact . | . . . . . . . . . . . . . . . . . . . . . Weapon 35 | 2 2 . . . . 2 . 10 . . . 1 8 . 1 . 2 2 1 4 Energy Gun 14 | . . . . . . . . 6 . . . 1 4 . . . 1 1 . 1 Energy Cannon 8 | . . . . . . . . 1 . . . . 3 . 1 . 1 1 . 1 Ballistic Gun 6 | 2 1 . . . . 1 . 2 . . . . . . . . . . . . Ballistic Cannon 1 | . . . . . . . . 1 . . . . . . . . . . . . Launcher 4 | . 1 . . . . 1 . . . . . . 1 . . . . . 1 . Special Weapon . | . . . . . . . . . . . . . . . . . . . . . Impact Weapon 1 | . . . . . . . . . . . . . . . . . . . . 1 Slashing Weapon 1 | . . . . . . . . . . . . . . . . . . . . 1 Piercing Weapon . | . . . . . . . . . . . . . . . . . . . . . Special Melee Weapon . | . . . . . . . . . . . . . . . . . . . . . Unidentified Prototypes 16 | . . . . . . 2 . . . . . . 2 . . 5 . 3 2 2 Parts Lost 90 | . 4 . . . 3 7 1 14 3 . . 4 8 . 7 2 7 14 15 1 Power 4 | . . . . . . . . . . . . . 1 . . . 1 1 1 . Propulsion 41 | . 2 . . . 1 5 1 6 2 . . 1 3 . 5 1 3 5 6 . Utility 26 | . 1 . . . 1 1 . 5 1 . . 2 2 . 1 . 3 5 4 . Weapon 19 | . 1 . . . 1 1 . 3 . . . 1 2 . 1 1 . 3 4 1 Highest Loss Streak 11 | . 2 . . . 3 3 1 4 2 . . 2 2 . 6 2 7 5 11 1 To Critical Strikes . | . . . . . . . . . . . . . . . . . . . . . Average Backups 19 | 1 8 14 14 17 14 20 22 21 22 20 21 18 20 22 20 20 20 20 21 3 Power 1 | . 1 2 1 2 2 1 2 2 3 3 3 3 1 3 3 2 1 1 1 . Propulsion 2 | . 1 3 3 4 2 1 1 3 4 2 2 1 2 2 . . . 1 5 . Utility 8 | . 2 5 5 7 6 12 12 11 10 10 11 10 10 10 9 9 10 8 7 . Weapon 5 | . 3 3 3 4 4 4 6 4 5 5 5 4 5 6 6 7 7 8 7 2 Tool/Special . | . . . . . . . . . . . . . . . . . . . . . Unused Backups 28 | . 1 1 . . . 2 1 3 . . . . 5 . . 1 1 2 10 1 Power 3 | . . . . . . 2 . . . . . . . . . 1 . . . . Propulsion 6 | . . 1 . . . . . . . . . . . . . . . 1 4 . Utility 8 | . . . . . . . . 1 . . . . 1 . . . 1 1 4 . Weapon 10 | . 1 . . . . . 1 2 . . . . 4 . . . . . 2 . Tool/Special 1 | . . . . . . . . . . . . . . . . . . . . 1 Average Slot Usage (%) 92 | . 99 100 96 85 85 86 90 97 98 99 100 99 99 100 91 92 83 77 96 10 Engine 5 | . 14 14 14 14 9 9 9 5 6 1 . . 9 5 5 4 . . . . Core 2 | . . . . . . . . . . 4 6 6 1 5 5 5 3 1 3 . Reactor 1 | . . . . . . . . . . . . . . . . . 5 7 3 . Wheel 22 | . 27 28 28 28 34 33 35 25 25 25 26 25 22 23 14 12 15 14 21 . Device 12 | . 5 . . . . 6 9 13 13 13 13 13 11 11 11 13 17 20 28 . Storage 6 | . 14 14 13 14 9 9 9 6 6 6 6 6 5 5 5 5 5 5 3 . Processor 7 | . . . . . . . . 6 13 13 13 13 11 11 11 11 7 5 7 . Hackware 1 | . . . . . . . . . . . . . 3 5 5 2 . 1 3 . Protection 9 | . 8 14 10 . 15 11 9 17 13 13 13 13 11 11 11 9 4 5 3 . Energy Gun 5 | . . . . . . . . 12 19 20 20 19 14 . . . . . 4 . Energy Cannon 5 | . . . . . . . . . . . . . 2 17 16 16 16 9 7 2 Ballistic Gun 5 | . 27 27 28 28 16 13 9 5 . . . . . . . . . . . . Peak Build Rating 123 | 7 8 8 10 10 14 22 25 52 62 51 51 60 74 73 74 109 101 114 123 54 Average Rating 55 | 5 7 8 9 10 13 20 22 41 52 50 51 50 65 70 71 85 87 95 105 26 On Entrance 39 | . 7 8 8 10 10 11 22 25 52 51 51 51 51 73 70 71 87 82 94 2 Avg Prop Armor Cover (%) 5 | . . . . . . . . . . . . . . . . 5 3 4 . 35 Naked Turns 32 | . . . . . . . . . . . . . . . . . . . 9 23 Heaviest Build 220 | 14 32 49 206 206 210 220 216 130 115 111 111 118 142 130 130 171 173 186 160 39 Greatest Support 68 | 26 26 26 26 26 46 52 50 50 50 50 48 48 48 46 52 52 52 68 62 30 Greatest Overweight (x) 17 | . 3 1 7 7 5 8 5 5 5 2 2 3 4 2 4 5 17 17 3 1 Average Overweight (x) 2 | . . 1 1 7 4 4 3 2 2 2 2 2 2 2 3 4 5 4 1 . Largest Inventory Capacity 35 | 8 15 20 35 35 35 35 35 25 25 25 25 25 25 25 25 25 25 25 25 10 Average Capacity 24 | 7 13 15 23 35 35 35 34 25 25 25 25 25 25 25 25 25 25 25 24 5 Most Carried 26 | 4 13 15 18 19 18 25 26 25 25 22 22 22 25 25 25 25 25 25 25 5 Average Carried 20 | 1 8 14 14 18 15 21 23 22 23 21 22 19 21 24 22 22 23 21 22 4 Final Capacity 35 | 8 15 20 35 35 35 35 25 25 25 25 25 25 25 25 25 25 25 25 5 5 Final Carried 25 | 4 13 14 18 19 16 23 24 25 22 22 22 18 23 25 21 25 22 20 5 5 Class Distribution -------------------- 36% | Scavenger-Tank 26% | Tank 15% | Mutant 13% | Hauler-Mutant 3% | Hacker-Tank Dominant Class ---------------- Mutant | -10/Materials Mutant | -10/Mines Mutant | -10/Exiles Hauler-Mutant | -9/Mines Hauler-Mutant | -8/Materials Hauler-Mutant | -8/Storage Hauler-Mutant | -8/Recycling Scavenger-Tank | -6/Factory Tank | -6/Lower Caves Scavenger-Tank | -6/Lower Caves Scavenger-Tank | -6/Data Miner Scavenger-Tank | -5/Proximity Caves Tank | -5/Factory Scavenger-Tank | -5/Upper Caves Tank | -5/Upper Caves Tank | -5/Warlord Scavenger-Tank | -4/Proximity Caves Scavenger-Tank | -4/Factory Scavenger-Tank | -3/Research Mutant | -3/Quarantine Resources | -11 -10 -10 -10 -9 -8 -8 -8 -6 -6 -6 -6 -5 -5 -5 -5 -5 -4 -4 -3 -3 ----------- Run | Yrd Mat Min Exi Min Mat Sto Rec Fac Low Low Dat Pro Fac Upp Upp War Pro Fac Res Qua Matter Collected 4926 | 202 595 52 . . 87 752 178 444 100 20 . 69 554 20 349 176 150 469 709 . Remotely 1029 | . . . . . . 652 178 199 . . . . . . . . . . . . Salvage Created 7263 | 22 530 42 . . . 634 126 848 333 . . 238 1047 123 260 . 249 2203 608 . Parts 364 | 5 38 11 . . . 48 8 45 8 . . 9 41 4 6 . 22 81 38 . Haulers Intercepted 1 | . 1 . . . . . . . . . . . . . . . . . . . Recyclers Shooed 5 | . . . . . . . . . . . . . 1 . . . . . 4 . Parts Field Recycled . | . . . . . . . . . . . . . . . . . . . . . Retrieved Matter . | . . . . . . . . . . . . . . . . . . . . . Parts Self-Destructed 47 | . . . . . . . . . 11 . . 8 . 9 6 . 13 . . . Prevented . | . . . . . . . . . . . . . . . . . . . . . Parts Restored . | . . . . . . . . . . . . . . . . . . . . . Kills | -11 -10 -10 -10 -9 -8 -8 -8 -6 -6 -6 -6 -5 -5 -5 -5 -5 -4 -4 -3 -3 ------- Run | Yrd Mat Min Exi Min Mat Sto Rec Fac Low Low Dat Pro Fac Upp Upp War Pro Fac Res Qua Combat Hostiles Destroyed 153 | . 16 3 . . . 28 1 19 8 . . 9 16 1 6 . 13 26 7 . Guns 51 | . 15 1 . . . 7 1 13 2 . . 5 7 . . . . . . . Cannons 23 | . . . . . . . . 2 1 . . . 2 1 4 . 2 9 2 . AOE 61 | . 1 2 . . . 21 . 2 2 . . 1 3 . 2 . 11 11 5 . Classes Destroyed 20 | 1 4 . . . . 5 1 3 . . . 1 . . . . 1 4 . . Worker 27 | . 3 . . . . 5 . 2 . . . . 5 . . . . 6 6 . Builder 17 | . . . . . . 1 . 1 . . . . 2 . . . . 9 4 . Tunneler 9 | 1 . 1 . . . . . 1 . . . . 1 . . . . 1 4 . Hauler 1 | . 1 . . . . . . . . . . . . . . . . . . . Recycler 12 | . . . . . . . 2 . . . . . 1 . . . . 6 3 . Mechanic 2 | . . . . . . . . . . . . . . . . . . 2 . . Operator 1 | . . . . . . . . . . . . . . . . . . 1 . . Drone 3 | . . . . . . . . . . . . 1 . . . . 2 . . . Watcher 3 | . . . . . . . . 1 . . . . 1 . . . . 1 . . Swarmer 51 | . 9 3 . . . 7 . 8 2 . . 4 4 . . . 10 4 . . Grunt 43 | . 7 . . . . 12 . 4 5 . . . . . 5 . . 7 3 . Brawler 3 | . . . . . . 1 . 1 1 . . . . . . . . . . . Duelist 3 | . . . . . . 3 . . . . . . . . . . . . . . Protector 1 | . . . . . . 1 . . . . . . . . . . . . . . Sentry 14 | . . . . . . 4 1 3 . . . . 3 1 1 . . 1 . . Specialist 4 | . . . . . . . . . . . . . . . . . . 2 2 . Hunter 9 | . . . . . . . . 1 . . . 2 . . . . . 6 . . Programmer 19 | . . . . . . . . 2 . . . 2 9 . . . . 5 1 . Heavy 2 | . . . . . . . . . . . . . . . . . . 1 1 . Behemoth 1 | . . . . . . . . . . . . . . . . . 1 . . . Decomposer 5 | . . . . . . . . . . . . . . 3 . . 2 . . . Best Kill Streak 25 | 1 6 3 . . . 15 3 5 5 . . 5 4 1 5 . 11 25 10 . Combat Bots Only 13 | . 6 3 . . . 13 1 4 5 . . 5 4 1 5 . 11 6 3 . Max Kills in Single Turn 7 | 1 2 2 . . . 3 1 2 2 . . 2 4 1 1 . 6 7 4 . Gunslinging 1 | . . . . . . . . 1 . . . 1 . . . . . . . . Exploded 6 | . 1 1 . . . 3 . 1 1 . . 1 3 . 1 . 6 2 2 . Melee . | . . . . . . . . . . . . . . . . . . . . . Uniques/NPCs Destroyed . | . . . . . . . . . . . . . . . . . . . . . Combat | -11 -10 -10 -10 -9 -8 -8 -8 -6 -6 -6 -6 -5 -5 -5 -5 -5 -4 -4 -3 -3 -------- Run | Yrd Mat Min Exi Min Mat Sto Rec Fac Low Low Dat Pro Fac Upp Upp War Pro Fac Res Qua Hostile Shots Fired 1360 | . 70 14 . . 25 78 12 187 59 2 . 54 130 2 65 66 65 253 212 66 Missed 452 | . 17 7 . . 9 26 2 61 15 . . 20 40 2 19 23 15 111 58 27 Hits 908 | . 53 7 . . 16 52 10 126 44 2 . 34 90 . 46 43 50 142 154 39 Melee 7 | . . . . . . 1 . 1 . 2 . . . . . . . . . 3 Projectile 901 | . 53 7 . . 16 51 10 125 44 . . 34 90 . 46 43 50 142 154 36 AOE 1 | . . . . . . . . . . . . . . . . . . 1 . . Critical Strikes 39 | . 2 . . . . 2 1 2 1 . . . 6 . 4 2 3 3 12 1 Actively Blocked 11 | . . . . . . . . . . . . . . . . . . 2 9 . Part Disruptions 2 | . . . . . . . . . . . . . 1 . . . . . 1 . Damage Taken 15350 | . 502 75 . . 261 1006 190 1760 762 10 . 539 1644 . 935 791 1030 2376 2748 721 Core 2430 | . 110 18 . . 15 117 12 192 64 10 . 75 90 . 92 114 39 169 653 660 Absorbed by Shields 1345 | . . . . . . . . . . . . . 299 . . . 264 265 517 . Reduced by Siege Mode 91 | . . . . . . . . . . . . . . . . . . . 91 . Redirected to Shielding 62 | . . . . . 19 . . . . . . . 43 . . . . . . . Ignored by Resistances 1378 | . . . . . . . . 122 . . . . . . . 177 237 581 261 . Regen/Repaired (Parts) 725 | . . . . . . . . . . . . . 623 . . 102 . . . . Core Remaining (%) 71 | 100 . . . 48 . . 73 . . . . 59 . . . . 66 85 . . Volleys Fired 420 | 2 67 5 . . . 55 6 50 11 3 . 15 70 7 15 1 23 56 30 4 Largest 3 | 2 2 2 . . . 2 2 3 3 3 . 3 3 3 3 3 3 3 3 1 Hottest 278 | 40 50 50 . . . 60 50 250 250 250 . 250 270 270 270 270 278 278 277 94 Shots Fired 897 | 4 134 10 . . . 102 12 132 25 9 . 36 179 11 43 3 62 75 56 4 Gun 571 | 4 132 8 . . . 68 6 122 20 9 . 32 156 . . . . 2 11 1 Cannon 254 | . . . . . . . . 10 5 . . 4 22 11 36 3 59 73 28 3 Launcher 72 | . 2 2 . . . 34 6 . . . . . 1 . 7 . 3 . 17 . Special . | . . . . . . . . . . . . . . . . . . . . . Kinetic 275 | 4 132 8 . . . 68 6 57 . . . . . . . . . . . . Thermal 526 | . . . . . . . . 55 25 9 . 36 178 11 36 3 59 75 39 . Explosive 72 | . 2 2 . . . 34 6 . . . . . 1 . 7 . 3 . 17 . Electromagnetic 23 | . . . . . . . . 20 . . . . . . . . . . . 3 Entropic 1 | . . . . . . . . . . . . . . . . . . . . 1 Robot Hit Streak 26 | 1 10 2 . . . 21 6 22 26 3 . 9 17 3 15 . 10 10 23 . Robot Miss Streak 6 | 3 4 3 . . . 2 1 5 2 4 . 6 4 1 2 . 5 6 2 . Penetration Max . | . . . . . . . . . . . . . . . . . . . . . Secondary Targets 7 | . . . . . . . . 3 1 . . 2 1 . . . . . . . Max Gunslinging Chain 1 | . . . . . . . . 1 1 . . 1 1 . . . . . . . Shots Hit Robots 543 | 1 75 4 . . . 75 8 87 15 5 . 24 100 6 30 . 37 42 34 . Core Hits 398 | 1 33 6 . . . 87 6 56 12 3 . 12 44 5 11 . 16 54 52 . Critical Kills 10 | . . . . . . . . . 2 . . 1 . . . . . 7 . . Critical Parts Destroyed . | . . . . . . . . . . . . . . . . . . . . . Critical Strikes 32 | . . . . . . 1 . 4 2 1 . 2 15 . . . . 7 . . Burn 21 | . . . . . . . . 4 . 1 . 1 15 . . . . . . . Meltdown 10 | . . . . . . . . . 2 . . 1 . . . . . 7 . . Destroy 1 | . . . . . . 1 . . . . . . . . . . . . . . Melee Attacks . | . . . . . . . . . . . . . . . . . . . . . Impact . | . . . . . . . . . . . . . . . . . . . . . Slashing . | . . . . . . . . . . . . . . . . . . . . . Piercing . | . . . . . . . . . . . . . . . . . . . . . Sneak Attacks . | . . . . . . . . . . . . . . . . . . . . . Combat Hostiles . | . . . . . . . . . . . . . . . . . . . . . Follow-up Attacks . | . . . . . . . . . . . . . . . . . . . . . Damage Inflicted 26183 | 10 938 124 . . . 3077 154 2250 812 138 . 995 2587 207 1418 66 2118 7590 3699 . Guns 5634 | 10 886 34 . . . 526 31 1212 287 138 . 480 1806 . . . . 23 201 . Cannons 7577 | . . . . . . . . 384 287 . . 222 483 207 964 . 1259 3330 441 . Explosions 12902 | . 52 90 . . . 2551 123 654 238 . . 293 298 . 454 . 859 4237 3053 . Melee . | . . . . . . . . . . . . . . . . . . . . . Ramming 70 | . . . . . . . . . . . . . . . . 66 . . 4 . Kinetic 1926 | 10 886 34 . . . 526 31 439 . . . . . . . . . . . . Thermal 16363 | . . . . . . . . 1555 812 138 . 995 2347 207 964 . 1259 7444 642 . Explosive 7568 | . 52 90 . . . 2551 123 . . . . . 240 . 454 . 859 146 3053 . Electromagnetic 256 | . . . . . . . . 256 . . . . . . . . . . . . Impact . | . . . . . . . . . . . . . . . . . . . . . Slashing . | . . . . . . . . . . . . . . . . . . . . . Piercing . | . . . . . . . . . . . . . . . . . . . . . Highest Corruption 8 | . . . . . . . . 2 2 2 2 4 8 1 1 1 . 3 1 3 Average Corruption 2 | . . . . . . . . 1 2 2 2 2 5 1 1 1 . 1 1 1 Corruption Purged 12 | . . . . . . . . . . . . . 11 . . . . 1 . . Corruption Blocked . | . . . . . . . . . . . . . . . . . . . . . Effects 63 | . . . . . . . . 6 9 . 1 6 27 3 2 . . 8 . 1 Message Errors 13 | . . . . . . . . 1 3 . . 2 6 . 1 . . . . . Matter Fused 10 | . . . . . . . . 1 1 . . 1 5 . . . . 2 . . Heat Flow Errors 6 | . . . . . . . . . 1 . . . 3 . 1 . . 1 . . Energy Discharges 11 | . . . . . . . . 3 . . . 2 1 3 . . . 1 . 1 Parts Rejected 1 | . . . . . . . . . 1 . . . . . . . . . . . Parts Fused 2 | . . . . . . . . . . . . . 2 . . . . . . . Data Loss (minor) 6 | . . . . . . . . 1 1 . . . 3 . . . . 1 . . Data Loss (major) 2 | . . . . . . . . . . . . . . . . . . 2 . . Misfires 6 | . . . . . . . . . 2 . . . 4 . . . . . . . Alerts 2 | . . . . . . . . . . . 1 . 1 . . . . . . . Weapon Failures 4 | . . . . . . . . . . . . 1 2 . . . . 1 . . Overload Shots . | . . . . . . . . . . . . . . . . . . . . . Overflow Damage 1412 | . . . . . . 40 3 67 117 . . 34 75 28 49 . 73 807 119 . Projectiles 911 | . . . . . . . . 67 117 . . 14 47 28 44 . 37 545 12 . Explosions 501 | . . . . . . 40 3 . . . . 20 28 . 5 . 36 262 107 . Melee . | . . . . . . . . . . . . . . . . . . . . . Knockbacks 1 | . . . . . . . . 1 . . . . . . . . . . . . Impact . | . . . . . . . . . . . . . . . . . . . . . Kinetic 1 | . . . . . . . . 1 . . . . . . . . . . . . Secondary . | . . . . . . . . . . . . . . . . . . . . . Self-Inflicted Damage 956 | . . 16 . . . 201 42 70 . . . . 3 . 39 32 49 384 120 . Shots 30 | . . 1 . . . 12 4 1 . . . . 1 . 2 . 1 6 2 . Rammed 5 | . . . . . . . . . . . . . . . . 4 . . 1 . Targets Rammed 5 | . . . . . . . . . . . . . . . . 4 . . 1 . Kicked . | . . . . . . . . . . . . . . . . . . . . . Crushed . | . . . . . . . . . . . . . . . . . . . . . Highest Temperature 565 | . 12 6 . . 1 34 8 343 102 217 . 279 565 126 381 108 354 . 87 . Average Temperature 122 | . 5 4 . . 1 7 5 84 54 100 . 101 176 55 130 54 110 . 34 . Received Heat Transfer 3115 | . 150 . . . 90 342 63 393 249 . . . 83 . 418 220 375 69 624 39 Effects 23 | . . . . . . . . 2 . . . . 18 . . . 3 . . . Shutdowns 3 | . . . . . . . . . . . . . 3 . . . . . . . Energy Bleed 5 | . . . . . . . . . . . . . 5 . . . . . . . Interference 10 | . . . . . . . . 2 . . . . 5 . . . 3 . . . Damage (minor) 2 | . . . . . . . . . . . . . 2 . . . . . . . Damage (major) 3 | . . . . . . . . . . . . . 3 . . . . . . . Siege Activations 2 | . . . . . . . . . . . . . . . . . . . 2 . Total Turns 32 | . . . . . . . . . . . . . . . . . . . 32 . Longest Duration 31 | . . . . . . . . . . . . . . . . . . . 31 . Martial Activations . | . . . . . . . . . . . . . . . . . . . . . Shielding Activations . | . . . . . . . . . . . . . . . . . . . . . Robots Disrupted . | . . . . . . . . . . . . . . . . . . . . . Combat Hostiles . | . . . . . . . . . . . . . . . . . . . . . Robots Corrupted . | . . . . . . . . . . . . . . . . . . . . . Combat Hostiles . | . . . . . . . . . . . . . . . . . . . . . Parts Fried . | . . . . . . . . . . . . . . . . . . . . . Impact Corruptions . | . . . . . . . . . . . . . . . . . . . . . Robots Melted 20 | . . . . . . . . 2 3 . . 3 5 . . . . 7 . . Combat Hostiles 18 | . . . . . . . . 2 3 . . 3 4 . . . . 6 . . Parts Melted 84 | . . . . . . . . 11 6 . . 8 38 . 1 . . 17 3 . Heat Transferred 23256 | . . . . . . . . 2616 1205 450 . 1630 6432 222 1036 . 1475 7231 959 . Parts Sabotaged . | . . . . . . . . . . . . . . . . . . . . . Parts Stolen 1 | . . . . . . . . . . 1 . . . . . . . . . . Parts Stripped . | . . . . . . . . . . . . . . . . . . . . . Power Chain Reactions 1 | . . . . . . . . 1 . . . . . . . . . . . . Alert | -11 -10 -10 -10 -9 -8 -8 -8 -6 -6 -6 -6 -5 -5 -5 -5 -5 -4 -4 -3 -3 ------- Run | Yrd Mat Min Exi Min Mat Sto Rec Fac Low Low Dat Pro Fac Upp Upp War Pro Fac Res Qua Maximum Alert Level 5 | . . . . . . 2 1 1 . . . . 2 . . . . 4 3 5 Low Security (%) 43 | 100 100 100 . 100 100 26 87 78 . . . . 17 . . . . . . . Level 1 21 | . . . . . . 34 12 21 . . . . 57 . . . . 1 . . Level 2 24 | . . . . . . 38 . . . . . . 25 . . . . 36 95 . Level 3 5 | . . . . . . . . . . . . . . . . . . 45 4 . Level 4 1 | . . . . . . . . . . . . . . . . . . 16 . . Level 5 . | . . . . . . . . . . . . . . . . . . . . . High Security . | . . . . . . . . . . . . . . . . . . . . . Max Security 2 | . . . . . . . . . . . . . . . . . . . . 99 Peak Influence 1810 | 5 145 115 . . 7 593 236 240 . . . . 568 . . . . 1282 811 1810 Initial 669 | . . 19 . . . . 224 . . . . . 300 . . . . 450 669 424 Average 343 | . 73 66 . . . 316 122 92 . . . . 306 . . . . 825 569 1646 Influence Increases 7128 | 5 446 107 . . 7 898 71 708 205 . . 195 1246 20 130 120 260 1902 598 210 Destroy 0b10 Robot/C 2980 | . 320 60 . . . 540 20 380 160 . . 160 320 20 120 . 220 520 140 . Destroy 0b10 Robot/NC 385 | 5 20 5 . . . 40 10 25 . . . 5 50 . . . 10 130 85 . Destroy Leader 610 | . 62 10 . . . 102 . 92 30 . . 30 82 . 10 . 30 122 40 . Allied During Kill 1 | . . . . . . 1 . . . . . . . . . . . . . . Successful Hack 142 | . 16 6 . . 7 . 26 29 . . . . 32 . . . . . 26 . Disable Machine 420 | . . 15 . . . 90 . 90 . . . . 45 . . . . 105 15 60 Anti-Garrison Action 200 | . . . . . . . . . . . . . 200 . . . . . . . Destroy Structure 1130 | . 13 11 . . . 125 15 32 . . . . 112 . . . . 560 262 . Advance Influence 750 | . . . . . . . . . . . . . 300 . . . . 450 . . Partial Spotted 15 | . . . . . . . . . . . . . 15 . . . . . . . Lose Combat Pursuer 495 | . 15 . . . . . . 60 15 . . . 90 . . 120 . 15 30 150 Influence Decreases 6504 | 5 396 141 16 . 7 322 647 494 372 47 . 195 694 419 283 56 324 626 1119 341 Entered New Map 1726 | . . 31 16 . . . 352 . 80 10 . . . 205 30 . 64 . 607 331 Time Decay 3881 | 5 356 110 . . 7 244 285 405 262 37 . 165 604 214 183 36 220 386 362 . Search Patrol Dispatched 100 | . . . . . . . . . . . . . . . . . . 100 . . Lost Part 779 | . 40 . . . . 70 10 89 30 . . 30 80 . 70 20 40 140 150 10 Lost Ally 18 | . . . . . . 8 . . . . . . 10 . . . . . . . Squads Dispatched 46 | . 5 . . . . 4 . 5 . . . . 9 . . . . 6 5 12 Investigation 6 | . 1 . . . . 1 . 1 . . . . 1 . . . . 1 1 . Extermination 9 | . . . . . . . . 2 . . . . 4 . . . . 2 1 . Reinforcement 16 | . 4 . . . . 1 . 2 . . . . 3 . . . . 3 3 . Assault 15 | . . . . . . 2 . . . . . . 1 . . . . . . 12 Garrison . | . . . . . . . . . . . . . . . . . . . . . Intercept . | . . . . . . . . . . . . . . . . . . . . . Searches Triggered 1 | . . . . . . . . . . . . . . . . . . 1 . . Data Miner Redirects 1 | . . . . . . . . . . . . . 1 . . . . . . . Construction Impeded 3 | . . . . . . . . . . . . . 1 . . . . 1 1 . Haulers Reinforced . | . . . . . . . . . . . . . . . . . . . . . Active Scanning Responses . | . . . . . . . . . . . . . . . . . . . . . Cargo Convoy Interrupts . | . . . . . . . . . . . . . . . . . . . . . Stealth | -11 -10 -10 -10 -9 -8 -8 -8 -6 -6 -6 -6 -5 -5 -5 -5 -5 -4 -4 -3 -3 --------- Run | Yrd Mat Min Exi Min Mat Sto Rec Fac Low Low Dat Pro Fac Upp Upp War Pro Fac Res Qua Distress Signals 13 | . 3 . . . 1 3 . 1 . . . . 2 . . 1 . 2 . . Communications Jammed . | . . . . . . . . . . . . . . . . . . . . . Distress Signals . | . . . . . . . . . . . . . . . . . . . . . Times Spotted 297 | . 25 3 . . 5 35 1 27 10 1 . 9 31 1 6 35 14 25 25 44 Peak Tracking Total 28 | . 5 3 . . 6 9 1 4 6 1 . 5 7 1 5 14 10 6 11 28 Tactical Retreats 15 | . 1 . . . . . . 1 1 . . . 3 . . 3 . 1 2 3 Traps | -11 -10 -10 -10 -9 -8 -8 -8 -6 -6 -6 -6 -5 -5 -5 -5 -5 -4 -4 -3 -3 ------- Run | Yrd Mat Min Exi Min Mat Sto Rec Fac Low Low Dat Pro Fac Upp Upp War Pro Fac Res Qua Traps Triggered 13 | . 3 . . . . 1 . 5 . . . . . . . . . 1 3 . Indirectly . | . . . . . . . . . . . . . . . . . . . . . Trap Hack Attempts . | . . . . . . . . . . . . . . . . . . . . . Triggered . | . . . . . . . . . . . . . . . . . . . . . Disarmed . | . . . . . . . . . . . . . . . . . . . . . Reprogrammed . | . . . . . . . . . . . . . . . . . . . . . Reused . | . . . . . . . . . . . . . . . . . . . . . Traps Extracted . | . . . . . . . . . . . . . . . . . . . . . Installed . | . . . . . . . . . . . . . . . . . . . . . Triggered . | . . . . . . . . . . . . . . . . . . . . . Machines | -11 -10 -10 -10 -9 -8 -8 -8 -6 -6 -6 -6 -5 -5 -5 -5 -5 -4 -4 -3 -3 ---------- Run | Yrd Mat Min Exi Min Mat Sto Rec Fac Low Low Dat Pro Fac Upp Upp War Pro Fac Res Qua Machines Disabled 29 | . . 1 . . . 6 . 6 . . . . 3 . 1 . . 7 1 4 Max in Single Turn 4 | . . 1 . . . 1 . 4 . . . . 2 . 1 . . 3 1 1 Garrison Access 1 | . . . . . . . . . . . . . 1 . . . . . . . Machines Repaired . | . . . . . . . . . . . . . . . . . . . . . Machines Dismantled . | . . . . . . . . . . . . . . . . . . . . . Machines Sabotaged . | . . . . . . . . . . . . . . . . . . . . . Overloaded Fab Kills . | . . . . . . . . . . . . . . . . . . . . . Hacking | -11 -10 -10 -10 -9 -8 -8 -8 -6 -6 -6 -6 -5 -5 -5 -5 -5 -4 -4 -3 -3 --------- Run | Yrd Mat Min Exi Min Mat Sto Rec Fac Low Low Dat Pro Fac Upp Upp War Pro Fac Res Qua Machines Accessed 45 | . 4 1 2 . 3 1 5 5 . . 4 . 5 2 1 5 . 1 6 . Terminals 19 | . 4 1 . . 2 1 5 2 . . . . 2 . . . . . 2 . Fabricators 4 | . . . . . . . . 2 . . . . . . . . . 1 1 . Repair Stations 1 | . . . . . . . . . . . . . 1 . . . . . . . Recycling Units . | . . . . . . . . . . . . . . . . . . . . . Scanalyzers 4 | . . . . . 1 . . 1 . . . . . . . . . . 2 . Garrison Access 3 | . . . . . . . . . . . . . 2 . . . . . 1 . Total Hacks 135 | . 13 3 2 . 10 1 12 10 . . 27 . 23 7 1 13 . 2 11 . Successful 93 | . 6 1 2 . 6 1 8 5 . . 27 . 12 7 1 13 . 2 2 . Failed 40 | . 7 1 . . 4 . 4 4 . . . . 11 . . . . . 9 . Catastrophic 4 | . . . . . . . . 2 . . . . . . . . . . 2 . Database Lockouts 2 | . . 1 . . . . . 1 . . . . . . . . . . . . Manual 62 | . 14 4 1 . 3 2 11 6 . . . . 17 . . 1 . . 3 . Terminals 58 | . 13 3 . . 5 1 12 6 . . . . 13 . . . . . 5 . Fabricators 6 | . . . . . . . . 3 . . . . . . . . . 2 1 . Repair Stations 5 | . . . . . . . . . . . . . 5 . . . . . . . Recycling Units . | . . . . . . . . . . . . . . . . . . . . . Scanalyzers 9 | . . . . . 5 . . 1 . . . . . . . . . . 3 . Garrison Access 7 | . . . . . . . . . . . . . 5 . . . . . 2 . Terminal Hacks 65 | . 3 1 2 . 1 . 3 1 . . 27 . 5 7 1 13 . . 1 . Record 26 | . . . 1 . . . . . . . 11 . . 6 1 6 . . 1 . Part Schematic 9 | . 1 . . . . . . . . . 8 . . . . . . . . . Robot Schematic 5 | . . . . . . . . . . . 5 . . . . . . . . . Robot Analysis 9 | . 1 1 . . 1 . 3 . . . . . 3 . . . . . . . Prototype ID Bank 8 | . . . . . . . . . . . 3 . . . . 5 . . . . Open Door 3 | . . . . . . . . . . . . . . 1 . 2 . . . . Branch Access Points 1 | . . . . . . . . . . . . . 1 . . . . . . . Recycling Unit Index 1 | . . . . . . . . 1 . . . . . . . . . . . . Registered Components 2 | . 1 . . . . . . . . . . . 1 . . . . . . . Proto ID Catalog 1 | . . . 1 . . . . . . . . . . . . . . . . . Fabricator Hacks 4 | . . . . . . . . 2 . . . . . . . . . 2 . . Load Schematic 2 | . . . . . . . . 1 . . . . . . . . . 1 . . Build 2 | . . . . . . . . 1 . . . . . . . . . 1 . . Repair Station Hacks 4 | . . . . . . . . . . . . . 4 . . . . . . . Scan Component 2 | . . . . . . . . . . . . . 2 . . . . . . . Repair 2 | . . . . . . . . . . . . . 2 . . . . . . . Recycling Unit Hacks . | . . . . . . . . . . . . . . . . . . . . . Scanalyzer 6 | . . . . . 4 . . 1 . . . . . . . . . . 1 . Insert Component 2 | . . . . . 1 . . . . . . . . . . . . . 1 . Analyze 1 | . . . . . 1 . . . . . . . . . . . . . . . Retrieve Study 3 | . . . . . 2 . . 1 . . . . . . . . . . . . Garrison Access Hacks . | . . . . . . . . . . . . . . . . . . . . . Unauthorized Hacks 14 | . 3 . . . 1 1 5 1 . . . . 3 . . . . . . . Terminals 13 | . 3 . . . 1 1 5 1 . . . . 2 . . . . . . . Assimilate 1 | . . . . . . . . . . . . . 1 . . . . . . . Botnet 12 | . 3 . . . 1 1 5 1 . . . . 1 . . . . . . . Fabricators . | . . . . . . . . . . . . . . . . . . . . . Repair Stations . | . . . . . . . . . . . . . . . . . . . . . Recycling Units . | . . . . . . . . . . . . . . . . . . . . . Scanalyzers . | . . . . . . . . . . . . . . . . . . . . . Garrison Access 1 | . . . . . . . . . . . . . 1 . . . . . . . Jam 1 | . . . . . . . . . . . . . 1 . . . . . . . Data Cores Recovered . | . . . . . . . . . . . . . . . . . . . . . Used . | . . . . . . . . . . . . . . . . . . . . . Hacking Detections 29 | . 4 1 . . 3 1 4 4 . . . . 5 . . . . 1 6 . Full Trace Events 2 | . . . . . . . . 1 . . . . . . . . . 1 . . Feedback Events . | . . . . . . . . . . . . . . . . . . . . . Feedback Blocked . | . . . . . . . . . . . . . . . . . . . . . Robot Schematics Acquired 5 | . . . . . . . . . . . 5 . . . . . . . . . Robots Built . | . . . . . . . . . . . . . . . . . . . . . Authchips . | . . . . . . . . . . . . . . . . . . . . . Time . | . . . . . . . . . . . . . . . . . . . . . Total Robot Build Rating . | . . . . . . . . . . . . . . . . . . . . . Part Schematics Acquired 10 | . 1 . . . 1 . . . . . 8 . . . . . . . . . Parts Built 4 | . . . . . . . . 1 . . . . . . . . . 3 . . Authchips . | . . . . . . . . . . . . . . . . . . . . . Time 76 | . . . . . . . . 25 . . . . . . . . . 51 . . Total Part Build Rating 4 | . . . . . . . . 1 . . . . . . . . . 3 . . Part Studies Acquired 3 | . . . . . 2 . . 1 . . . . . . . . . . . . Parts Repaired 2 | . . . . . . . . . . . . . 2 . . . . . . . Time 70 | . . . . . . . . . . . . . 70 . . . . . . . Parts Recycled . | . . . . . . . . . . . . . . . . . . . . . Recycled Matter . | . . . . . . . . . . . . . . . . . . . . . Retrieved Matter . | . . . . . . . . . . . . . . . . . . . . . Retrieved Components . | . . . . . . . . . . . . . . . . . . . . . Parts Scanalyzed 2 | . . . . . 1 . . . . . . . . . . . . . 1 . Part Schematics Acquired 1 | . . . . . 1 . . . . . . . . . . . . . . . Parts Damaged 1 | . . . . . . . . . . . . . . . . . . . 1 . Bothacking | -11 -10 -10 -10 -9 -8 -8 -8 -6 -6 -6 -6 -5 -5 -5 -5 -5 -4 -4 -3 -3 ------------ Run | Yrd Mat Min Exi Min Mat Sto Rec Fac Low Low Dat Pro Fac Upp Upp War Pro Fac Res Qua Used RIF Installer . | . . . . . . . . . . . . . . . . . . . . . Robots Hacked . | . . . . . . . . . . . . . . . . . . . . . Non-combat . | . . . . . . . . . . . . . . . . . . . . . Combat . | . . . . . . . . . . . . . . . . . . . . . Robot Hacks Applied . | . . . . . . . . . . . . . . . . . . . . . Relay Couplers Released . | . . . . . . . . . . . . . . . . . . . . . Fabnet Peak Effective % . | . . . . . . . . . . . . . . . . . . . . . Robots Rewired . | . . . . . . . . . . . . . . . . . . . . . Allies Hacked . | . . . . . . . . . . . . . . . . . . . . . Hacks Repelled . | . . . . . . . . . . . . . . . . . . . . . Allies | -11 -10 -10 -10 -9 -8 -8 -8 -6 -6 -6 -6 -5 -5 -5 -5 -5 -4 -4 -3 -3 -------- Run | Yrd Mat Min Exi Min Mat Sto Rec Fac Low Low Dat Pro Fac Upp Upp War Pro Fac Res Qua Total Allies 3 | . . . . . . 2 . . . . . . 1 . . . . . . . Largest Group 2 | . . . . . . 2 . . . . . . 1 . . . . . . . Highest-Rated Group 62 | . . . . . . 62 . . . . . . 26 . . . . . . . Highest-Rated Ally 31 | . . . . . . 31 . . . . . . 26 . . . . . . . Total Orders . | . . . . . . . . . . . . . . . . . . . . . Ally Attacks 8 | . . . . . . 8 . . . . . . . . . . . . . . Total Damage 125 | . . . . . . 125 . . . . . . . . . . . . . . Kills 1 | . . . . . . 1 . . . . . . . . . . . . . . Allies Corrupted . | . . . . . . . . . . . . . . . . . . . . . Allies Melted . | . . . . . . . . . . . . . . . . . . . . . Intel | -11 -10 -10 -10 -9 -8 -8 -8 -6 -6 -6 -6 -5 -5 -5 -5 -5 -4 -4 -3 -3 ------- Run | Yrd Mat Min Exi Min Mat Sto Rec Fac Low Low Dat Pro Fac Upp Upp War Pro Fac Res Qua Active Infowar (turns) 7473 | 15 381 . . . . 37 . 1196 561 181 81 378 1931 455 397 963 455 . 442 . Optics 6584 | . . . . . . . . 1195 561 181 81 378 1918 455 397 963 455 . . . Seismic 3151 | 15 381 . . . . 37 . 1012 496 181 81 378 224 293 53 . . . . . Cloaking 442 | . . . . . . . . . . . . . . . . . . . 442 . Jamming 51 | . . . . . . . . . . . . . 51 . . . . . . . Robot Analysis Total 9 | . 1 1 . . 1 . 3 . . . . . 3 . . . . . . . Derelict Logs Recovered 7 | . . . . . . . . . 1 1 . . . 2 1 . 2 . . . Drone Launches . | . . . . . . . . . . . . . . . . . . . . . Drone Recoveries . | . . . . . . . . . . . . . . . . . . . . . Exploration | -11 -10 -10 -10 -9 -8 -8 -8 -6 -6 -6 -6 -5 -5 -5 -5 -5 -4 -4 -3 -3 ------------- Run | Yrd Mat Min Exi Min Mat Sto Rec Fac Low Low Dat Pro Fac Upp Upp War Pro Fac Res Qua Turns Passed 12094 | 92 916 234 381 97 75 750 621 1232 561 181 81 378 1945 455 397 963 751 915 830 239 Spaces Moved 7935 | 75 662 188 312 50 51 336 415 821 442 155 76 285 1231 406 236 653 391 409 547 194 Core 123 | 1 . . . . . . . . . . . . . . . . . . 16 106 Treads 88 | . . . . . . . . . . . . . . . . . . . . 88 Legs 2 | . . . . . . . . . . . . . . . . . . 2 . . Wheels 7722 | 74 662 188 312 50 51 336 415 821 442 155 76 285 1231 406 236 653 391 407 531 . Hover . | . . . . . . . . . . . . . . . . . . . . . Flight . | . . . . . . . . . . . . . . . . . . . . . Fastest Speed 50 | 50 80 105 90 195 135 125 115 102 107 107 107 102 105 105 105 125 125 108 50 50 Average Speed 119 | 87 97 105 116 195 136 145 141 108 109 107 107 102 111 105 131 141 166 143 104 100 Slowest Speed 325 | 100 125 105 195 195 151 200 158 150 150 110 107 118 133 105 140 155 325 325 128 225 Overloaded Moves . | . . . . . . . . . . . . . . . . . . . . . Propulsion Burnouts . | . . . . . . . . . . . . . . . . . . . . . Robots Hopped . | . . . . . . . . . . . . . . . . . . . . . Potential Cave-ins . | . . . . . . . . . . . . . . . . . . . . . Cave-ins Triggered . | . . . . . . . . . . . . . . . . . . . . . Exploration Rate (%) 47 | 3 96 36 70 19 11 62 87 21 75 31 71 58 26 74 40 94 68 15 15 28 Regions Visited 20 Branch Regions 14 Pre-discovered Areas 5 | . . . 1 . . . . . 1 . 1 . . . . . 2 . . . Known Exits Taken 12 | . . . . . . . . 1 1 1 1 1 1 1 1 1 1 1 1 . Unknown Exits Taken 8 | 1 1 1 1 1 1 1 1 . . . . . . . . . . . . . Scrap Searched 11 | . . 1 . . . . . . 2 1 . . . 1 2 . 4 . . . Spaces Dug 19 | . . . . . . . . 1 . . . 1 2 3 . 3 3 3 3 . Terrain Destroyed 984 | . 13 13 . . . 150 27 29 28 . . 22 51 5 89 3 65 332 157 . Melee . | . . . . . . . . . . . . . . . . . . . . . Projectile 67 | . . . . . . . . 3 . . . 2 6 5 5 3 19 15 9 . AOE 917 | . 13 13 . . . 150 27 26 28 . . 20 45 . 84 . 46 317 148 . Terrain Rammed . | . . . . . . . . . . . . . . . . . . . . . Walls Destroyed . | . . . . . . . . . . . . . . . . . . . . . Machines Disabled . | . . . . . . . . . . . . . . . . . . . . . Actions | -11 -10 -10 -10 -9 -8 -8 -8 -6 -6 -6 -6 -5 -5 -5 -5 -5 -4 -4 -3 -3 --------- Run | Yrd Mat Min Exi Min Mat Sto Rec Fac Low Low Dat Pro Fac Upp Upp War Pro Fac Res Qua Total 9670 | 93 806 214 330 50 57 501 438 1051 489 162 75 334 1656 424 289 688 442 584 753 234 Wait 740 | 5 54 9 . . . 62 8 98 20 1 . 25 252 9 27 . 10 36 104 20 Move 7915 | 74 661 187 311 49 50 335 414 820 441 154 75 284 1230 405 235 652 390 408 546 194 Hop . | . . . . . . . . . . . . . . . . . . . . . Pick Up 165 | 4 13 1 14 1 2 18 5 25 2 1 . . 34 2 3 6 5 10 15 4 Fast Attach 76 | 7 3 . 1 . . 5 . 2 2 . . . 7 . . 8 2 21 13 5 Attach 109 | . 4 . . . 4 8 3 20 6 1 . 7 13 . 5 . 5 19 11 3 Detach 46 | . . . . . . 3 . 3 2 . . 3 4 . . 6 . 18 6 1 Swap 84 | 1 3 7 1 . . 9 1 11 2 1 . . 24 1 2 3 4 3 11 . Drop 99 | . 1 5 3 . 1 6 1 14 3 1 . . 22 . 2 8 3 10 16 3 Fire 420 | 2 67 5 . . . 55 6 50 11 3 . 15 70 7 15 1 23 56 30 4 Melee . | . . . . . . . . . . . . . . . . . . . . . Ram 5 | . . . . . . . . . . . . . . . . 4 . . 1 . Kick . | . . . . . . . . . . . . . . . . . . . . . Crush . | . . . . . . . . . . . . . . . . . . . . . Escape Stasis 11 | . . . . . . . . 8 . . . . . . . . . 3 . . Rewire . | . . . . . . . . . . . . . . . . . . . . . Trap . | . . . . . . . . . . . . . . . . . . . . . Miscellaneous . | . . . . . . . . . . . . . . . . . . . . . Route ------- -11/Scrapyard -10/Materials (discovered 5 exits: [*Mat x3] / *Min / [*Sub]) -10/Mines (discovered 2 exits: *Exi / [*Sub]) -10/Exiles -9/Mines -8/Materials -8/Storage -8/Recycling -6/Factory -6/Lower Caves -6/Lower Caves -6/Data Miner -5/Proximity Caves -5/Factory (discovered 4 exits: *Fac x2 / *Upp x2) -5/Upper Caves -5/Upper Caves -5/Warlord -4/Proximity Caves -4/Factory -3/Research -3/Quarantine History --------- Turn | Location | Event 16 | -11/Scrapyard | Discovered new exit (range 15) 93 | -11/Scrapyard | Entered Materials 146 | -10/Materials | Discovered new exit (range 13) 308 | -10/Materials | Build established: Mutant 345 | -10/Materials | Discovered new exit (range 3) 538 | -10/Materials | Discovered new exit (range 15) 913 | -10/Materials | Discovered new exit (range 7) 916 | -10/Materials | Discovered new exit (range 16) 1009 | -10/Materials | Entered Mines 1021 | -10/Mines | Core integrity fell below 50% 1041 | -10/Mines | Central database locked down 1092 | -10/Mines | Discovered new exit (range 10) 1239 | -10/Mines | Deemed a non-threat by the Exiles lab entrance 1239 | -10/Mines | Discovered new exit (range 5) 1243 | -10/Mines | Entered Exiles 1270 | -10/Exiles | Met 8R-AWN 1287 | -10/Exiles | Met EX-HEX 1316 | -10/Exiles | Met EX-BIN 1331 | -10/Exiles | Aligned with FarCom system 1332 | -10/Exiles | Given EX-Vault access code 1356 | -10/Exiles | Opened EX-Vault 1364 | -10/Exiles | Found YOLO Cannon 1387 | -10/Exiles | Warned to stay clear of 0b10 Research branches 1415 | -10/Exiles | Met EX-DEC 1425 | -10/Exiles | Learned location of Zion (-7) 1608 | -10/Exiles | Discovered new exit (range 10) 1624 | -10/Exiles | Left Exiles lab with YOLO Cannon 1624 | -10/Exiles | Entered Mines 1693 | -9/Mines | Discovered new exit (range 13) 1721 | -9/Mines | Entered Materials 1721 | -8/Materials | Evolved 4 slots: Propulsion x2, Utility x2 1772 | -8/Materials | Discovered new exit (range 13) 1796 | -8/Materials | Entered Storage 1826 | -8/Storage | Lost 3 parts (1n1u1w) 1842 | -8/Storage | Build established: Hauler-Mutant 1902 | -8/Storage | Met a pair of Derelict thieves 2048 | -8/Storage | Destroyed 13 combat bots 2345 | -8/Storage | Lost 3 parts (2n1w) 2540 | -8/Storage | Used back door to open Recycling access 2540 | -8/Storage | Discovered new exit (range 5) 2546 | -8/Storage | Entered Recycling 3143 | -8/Recycling | Discovered new exit (range 16) 3167 | -8/Recycling | Entered Factory 3167 | -6/Factory | Evolved 4 slots: Utility x3, Weapon x1 3651 | -6/Factory | Lost 4 parts (2n1u1w) 3794 | -6/Factory | Fabricated Huge Storage Unit (x1) 3997 | -6/Factory | Build established: Scavenger-Tank 4187 | -6/Factory | Discovered new exit (range 6) 4216 | -6/Factory | Identified exit to Lower Caves 4234 | -6/Factory | Found Powered Armor 4359 | -6/Factory | Central database locked down 4399 | -6/Factory | Entered Lower Caves 4421 | -6/Lower Caves | Spotted B-75 Beast 4430 | -6/Lower Caves | Encountered a Warlord checkpoint 4433 | -6/Lower Caves | Learned location of Extension (-6) 4503 | -6/Lower Caves | Build established: Tank 4947 | -6/Lower Caves | Discovered new exit (range 12) 4959 | -6/Lower Caves | Identified exit to Lower Caves 4960 | -6/Lower Caves | Entered another Lower Caves area 5081 | -6/Lower Caves | Learned Factory trap positions 5133 | -6/Lower Caves | Discovered new exit (range 7) 5140 | -6/Lower Caves | Identified exit to Data Miner 5141 | -6/Lower Caves | Entered Data Miner 5141 | -6/Data Miner | Discovered new exit (range 6) 5147 | -6/Data Miner | Identified exit to Proximity Caves 5160 | -6/Data Miner | Met Data Miner 5181 | -6/Data Miner | Learned location of Section 7 (-3) 5181 | -6/Data Miner | Acquired the access code to Warlord's prototype stash 5197 | -6/Data Miner | Received God Mode back door access code from Data Miner 5222 | -6/Data Miner | Entered Proximity Caves 5224 | -5/Proximity Caves | Spotter reported a threat 5225 | -5/Proximity Caves | Spotter reported a threat 5284 | -5/Proximity Caves | Build established: Scavenger-Tank 5590 | -5/Proximity Caves | Discovered new exit (range 12) 5599 | -5/Proximity Caves | Identified exit to Factory 5600 | -5/Proximity Caves | Entered Factory 5600 | -5/Factory | Evolved 2 slots: Power x1, Utility x1 5601 | -5/Factory | Loaded intel: 84 trap records 6133 | -5/Factory | Build established: Tank 6283 | -5/Factory | Incoming investigation squad redirected 6420 | -5/Factory | Discovered new exit (range 8) 6449 | -5/Factory | Identified exit to Factory 6660 | -5/Factory | Repaired Powered Armor 6691 | -5/Factory | Repaired Huge Storage Unit 6707 | -5/Factory | Identified exit to Upper Caves 6838 | -5/Factory | Found Hvy. Reactive Plating 7100 | -5/Factory | First assault squad dispatched 7259 | -5/Factory | Discovered exit to Factory (range 18) 7545 | -5/Factory | Entered Upper Caves 7577 | -5/Upper Caves | Entered an active Warlord outpost 7592 | -5/Upper Caves | Learned Armory emergency access door positions 7592 | -5/Upper Caves | Learned Factory stockpile data 7640 | -5/Upper Caves | Learned Factory terminal intel 7669 | -5/Upper Caves | Attracted the attention of an 0b10 checkpoint 7785 | -5/Upper Caves | Build established: Scavenger-Tank 7948 | -5/Upper Caves | Encountered a Warlord checkpoint 7959 | -5/Upper Caves | Learned Factory emergency access door positions 7977 | -5/Upper Caves | Discovered new exit (range 17) 7999 | -5/Upper Caves | Identified exit to Upper Caves 8000 | -5/Upper Caves | Entered another Upper Caves area 8004 | -5/Upper Caves | Attracted the attention of an 0b10 checkpoint 8035 | -5/Upper Caves | Found Alien Artifact 8167 | -5/Upper Caves | Lost 6 parts (5n1w) 8234 | -5/Upper Caves | Encountered a Warlord checkpoint 8358 | -5/Upper Caves | Learned Factory garrison access intel 8370 | -5/Upper Caves | Discovered new exit (range 13) 8387 | -5/Upper Caves | Identified exit to Warlord 8397 | -5/Upper Caves | Entered Warlord 8418 | -5/Warlord | Build established: Tank 8444 | -5/Warlord | System corruption cleaned by Quarantine Array 8668 | -5/Warlord | Met Warlord 8693 | -5/Warlord | Warlord's base attacked by MAIN.C 8824 | -5/Warlord | Found Prototype Energy Gun 8827 | -5/Warlord | Found Prototype Energy Gun 8892 | -5/Warlord | Opened Warlord's prototype stash 8911 | -5/Warlord | Found Prototype Processor 8911 | -5/Warlord | Identified Spectral Analyzer 8915 | -5/Warlord | Found Prototype Device 8915 | -5/Warlord | Identified Exp. Focal Shield 8923 | -5/Warlord | Found Prototype Reactor 9043 | -5/Warlord | Warlord forces counterattacked 9193 | -5/Warlord | Spotted Striker 9205 | -5/Warlord | Spotted Striker 9225 | -5/Warlord | Spotted Executioner 9237 | -5/Warlord | Spotted Executioner 9240 | -5/Warlord | Spotted Striker 9283 | -5/Warlord | Lost 12 allies 9326 | -5/Warlord | Opened side exit 9345 | -5/Warlord | Spotted Executioner 9347 | -5/Warlord | Spotted Executioner 9350 | -5/Warlord | Discovered new exit (range 11) 9359 | -5/Warlord | Identified exit to Proximity Caves 9360 | -5/Warlord | Entered Proximity Caves 9468 | -4/Proximity Caves | Destroyed 11 combat bots 9519 | -4/Proximity Caves | Build established: Scavenger-Tank 9581 | -4/Proximity Caves | Spotter reported a threat 9611 | -4/Proximity Caves | Learned location of Quarantine (-3) 9634 | -4/Proximity Caves | Spotter reported a threat 9661 | -4/Proximity Caves | Spotted B-86 Titan 9789 | -4/Proximity Caves | Spotter reported a threat 9860 | -4/Proximity Caves | Destroyed B-86 Titan 9890 | -4/Proximity Caves | Lost 7 parts (1p3n3u) 10098 | -4/Proximity Caves | Discovered exit to Factory (range 5) 10111 | -4/Proximity Caves | Entered Factory 10111 | -4/Factory | Evolved 2 slots: Propulsion x1, Utility x1 10114 | -4/Factory | Loaded intel: 25 terminal locations 10115 | -4/Factory | Loaded intel: 4 garrison access locations 10229 | -4/Factory | Identified Vortex Chain Reactor 10361 | -4/Factory | Search patrols dispatched 10440 | -4/Factory | Lost 5 parts (2n2u1w) 10588 | -4/Factory | Lost 3 parts (2n1u) 10745 | -4/Factory | Identified Dimensional Node Initializer 10745 | -4/Factory | Initialized slip node 10746 | -4/Factory | Identified Vortex Rifle (x2) 10768 | -4/Factory | Found Powered Armor 10859 | -4/Factory | Fabricated Wheel (x3) 10962 | -4/Factory | Build established: Scavenger-Mutant 10988 | -4/Factory | Discovered new exit (range 9) 11017 | -4/Factory | Identified exit to Research 11026 | -4/Factory | Entered Research 11026 | -3/Research | Evolved 2 slots: Utility x2 11308 | -3/Research | Build established: Scavenger-Tank 11336 | -3/Research | Found Prototype Launcher 11337 | -3/Research | Identified Adv. Micro-nuke Launcher 11691 | -3/Research | Discovered new exit (range 3) 11692 | -3/Research | Identified exit to Quarantine 11745 | -3/Research | Lost 4 parts (1n2u1w) 11847 | -3/Research | Released all parts (13) 11856 | -3/Research | Core integrity fell below 50% 11856 | -3/Research | Entered Quarantine 11857 | -3/Quarantine | Maximum security lockdown engaged 11876 | -3/Quarantine | Lost 11 parts (1p5n2u3w) 11876 | -3/Quarantine | Found Sigix Corpse 11901 | -3/Quarantine | Found Sigix Corpse 11951 | -3/Quarantine | Found Alien Impact Weapon 11951 | -3/Quarantine | Identified Core Stripper 12039 | -3/Quarantine | Released all parts (5) 12072 | -3/Quarantine | Found Alien Artifact 12072 | -3/Quarantine | Identified Subatomic Replicator 12092 | -3/Quarantine | Core integrity fell below 20% 12095 | -3/Quarantine | Destroyed by G-67 Veteran with Plasma Rifle Last Messages --------------- 12087_ C-45 Heavy ARC bursts open, deploying its payload. 12087_ G-73 Enforcer unfolds itself. 12087_ G-67 Veteran unfolds itself. 12087_ M-36 Artificer unfolds itself. 12087_ Penetrated by Slug. 12087_ Slug penetrates Quantum Generator. 12091_ Penetrated by Slug. 12091_ Segregator destroyed. 12091_ Slug penetrates Wall. 12091_ C-45 Heavy ARC bursts open, deploying its payload. 12091_ P-80 Master unfolds itself. 12091_ E-15 Imp unfolds itself. 12092_ C-45 Heavy ARC bursts open, deploying its payload. 12092_ G-73 Enforcer unfolds itself. 12092_ G-67 Veteran unfolds itself. 12094_ E-15 Imp destroyed. 12094_ Slug penetrates Quarantine Pod. 12094_ Penetrated by Slug. 12094_ Slug penetrates P-80 Master. 12094_ E-15 Imp destroyed. Map ----- +----------------------------------------------------+ | ?????????????????????????????????????????????????? | | ?????????????????????????????????????????????????? | | ?????????????????????????????????????????????????? | | ?????????????????????????????????????????????????? | | ?????????????????????????????????????????????????? | | ?????????????????????????????????????????????????? | | ?????????????????????????????????????????????????? | | ?????????????????????????????????????????????????? | | ?????????????????????????????????????????????????? | | ?????????????????????????????????????????????????? | | ?????????? ????????????????????????????????????? | | ?????????? #??????????????? ??????????????????? | | ?????????+ "#???????####???? ?????????????????? | | ?????????# "C#???????#g #?? ?????????????????? | | ?????????# g#???????# g #?? ?????????????????? | | ?????????# #??????## ### ????#????????????? | | ?????????# C#??????# g ???????????? | | ?????????# C#??????# ??????????? | | ?????##### g #??????# """ """g ???????????? | | ????? # gg#??????#! " " " " ?????????????? | | ??? """ # #??????# """ """g #???????????????? | | ?? """ # #??????# p%p#???????????????? | | ?" """ # ######## ==] ggp #???????????????? | | ?" """ # ==] #???????????????? | | ?T """ # h h %==]= #???????????????? | | "" """ !# /@%/ #???????????????? | | "" """ # =! +???????????????? | | ## " ############### #???????????????? | | ?# """ # #?????????????? #???????????????? | | ?# """ # #??????????????? #???????????????? | | ?# """ !# ####???????????????? #???????????????? | | ?# """ # #???????????????????? #???????????????? | | ??? """ # #?????????????????????#???????????????? | | ??? """ #g#?????????????????????????????????????? | | ??? """ !# #?????????????????????????????????????? | | ????? # #?????????????????????????????????????? | | ?#########+####??????????????????????????????????? | | ?# #??????????????????????????????????? | | ?# #????????????????o?????????????????? | | ?# #??????????????????????????????????? | | ?# """ #??????????????????????????????????? | | ?# """!""" #??????????????????????????????????? | | ?# "" #??????????????????????????????????? | | ?# " " T #??????????????????????????????????? | | ?# " #??????????????????????????????????? | | ?# #??????????????????????????????????? | | ?######/#######??????????????????????????????????? | | ????# ##########??????????????????????????????? | | ????# ????????????????????????????? | | ##### ????????????????????????????? | +----------------------------------------------------+ Best States ------------- Heat Dissipation 119 Coolant Potential 100 Energy Generation 55 Energy Capacity 1140 Matter Stores 300 Matter Capacity 300 Sight Range 24 Terrain Scan Density 10 Jamming Range 14 Cloak Strength 3 Base Temperature (-) 150 Armor Coverage 600 Resistance: KI 40 Propulsion Shielding 66 Utility Shielding 33 Evasion (%) 50 Targeting Accuracy 8 Recoil Reduction 3 Energy Filtering 30 Offensive Hacking 14 Defensive Hacking 12 Item Schematics ----------------- Huge Storage Unit | -10/Materials | Hacked Wheel | -8/Materials | Scanalyzed Combat Drone Bay | -6/Data Miner | Free Lgt. Regenerative Plating | -6/Data Miner | Free Enh. Armored Leg | -6/Data Miner | Free Imp. Matter Compressor | -6/Data Miner | Free Enh. Force Rifle | -6/Data Miner | Free Imp. Antigrav System | -6/Data Miner | Free Adv. Target Analyzer | -6/Data Miner | Free Phase Gun | -6/Data Miner | Free Robot Schematics ------------------ M-22 Extractor | -6/Data Miner | Free Y-64 Sentinel | -6/Data Miner | Free B-60 Warrior | -6/Data Miner | Free R-10 Processor | -6/Data Miner | Free M-36 Artificer | -6/Data Miner | Free Fabricated ------------ Huge Storage Unit | x1 | -6/Factory Wheel | x3 | -4/Factory Repaired ---------- Powered Armor | 16% | -5/Factory Huge Storage Unit | 21% | -5/Factory Studied --------- Wheel | -8/Materials | Hacked Com. Wheel | -8/Materials | Hacked Arm. Wheel | -6/Factory | Hacked Alien Tech Used ----------------- Dimensional Node Initializer Core Stripper Subatomic Replicator Achievements -------------- Short-term Sacrifices Challenges ------------ None Game ------ Seed FireHybridLayer Manual? 0 Play Time 02:10:49 Cumulative 210.6 hours Start 2026.07.25 @ 12:48:22 End 2026.07.25 @ 19:17:01 Sessions 3 Manual Loads 0 Difficulty Rogue Special Mode None Game No. 269 Rogue 269 Adventurer 0 Explorer 0 Win Type - Total 6 Types 6/0/0/0/0/0/0/0/0/0 Lore% 80 Gallery% 62 Achievement% 50 Wizard Run 0 Options --------- Layout 0 ASCII 0 Keyboard 0 Movement Numpad Keybinds 0 Fullscreen 1 Font 18/Terminus Map View 76x50 Zoom Use 0% Tactical HUD 1 Map Filters NONE Filters NONE Steam 1 RUN: 5a66056d-c04d-44b7-9602-cc0f20181249